bitfinex/quotes_ETHUSD_20251119
["timestamp","ask_amount","ask_price","bid_price","bid_amount"]
[1763544120586,2.28287725,3065.1,3064.8,0.4804]
[1763544120752,2.77937543,3065.3,3065.0,0.4804]
[1763544120953,2.77937543,3065.4,3065.0,0.4390495]
[1763544121166,2.28289341,3065.3,3065.1,0.0544]
[1763544121365,0.90699264,3066.1,3065.1,0.0544]
[1763544121366,0.85610486,3065.6,3065.1,0.0544]
[1763544121570,0.85610486,3065.6,3065.2,0.455]
[1763544121881,0.85610486,3065.7,3065.5,0.455]
[1763544122065,0.85610486,3065.8,3065.5,0.455]
[1763544122265,0.85610486,3065.8,3065.2,0.405504]
[1763544122266,0.85610486,3065.9,3065.6,0.455]
[1763544122986,0.85610486,3066.0,3065.6,0.455]
[1763544123375,0.1935,3065.9,3065.1,0.0544]
[1763544123682,1.04960486,3065.9,3065.1,0.0544]
[1763544123883,0.85610486,3065.9,3065.1,0.5348]
[1763544124185,0.90699264,3066.0,3065.2,0.405504]
[1763544124186,0.85610486,3066.0,3065.2,0.405504]
[1763544124389,0.85610486,3066.3,3065.8,0.455]
[1763544124596,0.85610486,3066.4,3065.8,0.455]
[1763544124798,0.85610486,3066.8,3066.3,0.455]
[1763544124969,0.85610486,3066.8,3066.2,0.1965]
[1763544124970,0.002,3066.9,3066.5,0.455]
[1763544125562,0.1955,3066.9,3066.2,0.1965]
[1763544126382,0.04075909,3066.8,3065.6,0.405504]
[1763544126780,0.82306942,3066.8,3065.2,0.4804]
[1763544127182,0.4847,3066.7,3065.2,0.4804]
[1763544127380,0.29761033,3066.8,3065.3,0.405504]
[1763544127596,0.002,3066.9,3065.3,0.405504]
[1763544127896,0.2013,3066.9,3065.4,0.4959]
[1763544128472,0.51182745,3066.6,3065.4,0.4959]
[1763544129176,0.51182745,3066.6,3065.5,0.405504]
[1763544129572,0.53656308,3066.5,3065.5,0.405504]
[1763544129926,0.83445099,3066.5,3065.1,0.0544]
[1763544130086,0.4958,3066.4,3065.1,0.0544]
[1763544130473,0.4958,3066.4,3065.1,0.5503]
[1763544130973,0.51182745,3066.6,3065.1,0.51308455]
[1763544131176,0.51182745,3066.6,3065.2,0.405504]
[1763544131475,0.51182745,3066.6,3065.4,0.405504]
[1763544131694,0.51182745,3066.6,3066.5,0.183]
[1763544132068,0.002,3066.9,3066.5,0.183]
[1763544133517,0.002,3066.9,3066.6,0.4959]
[1763544134010,0.002,3066.9,3066.6,0.4594847]
[1763544134414,0.002,3066.9,3066.5,0.183]
[1763544134571,0.002,3066.9,3065.1,0.92417719]
[1763544134572,0.6971,3066.9,3066.2,0.183]
[1763544134771,0.6971,3066.9,3065.1,0.01718455]
[1763544134977,0.53655909,3066.8,3065.1,0.01718455]
[1763544135198,0.4958,3066.8,3065.1,0.01718455]
[1763544135410,0.51183928,3066.4,3065.1,0.01718455]
[1763544136108,0.51183928,3066.4,3065.3,0.405504]
[1763544136475,0.51183928,3066.4,3065.5,0.405504]
[1763544136678,0.51183928,3066.4,3065.4,0.4959]
[1763544136928,0.1993,3065.2,3065.0,0.001]
[1763544137286,0.1993,3065.4,3065.0,0.001]
[1763544137490,0.885246,3065.8,3065.1,0.183]
[1763544137812,0.1993,3065.8,3065.1,0.183]
[1763544138112,0.1993,3065.9,3065.1,0.183]
[1763544139935,0.51183928,3066.4,3065.2,0.901404]
[1763544140308,0.51183928,3066.4,3065.4,0.405504]
[1763544140943,0.002,3066.9,3066.4,0.405504]
[1763544141329,0.002,3066.9,3066.3,0.183]
[1763544141330,0.002,3066.9,3066.5,0.4959]
[1763544141534,0.002,3066.9,3066.6,0.405504]
[1763544141846,0.002,3066.9,3066.8,0.405504]
[1763544142046,0.002,3066.9,3066.8,0.901404]
[1763544142354,0.002,3066.9,3066.8,0.4959]
[1763544143531,0.002,3066.9,3066.8,0.901404]
[1763544143738,0.002,3067.3,3066.9,0.405504]
[1763544143909,0.002,3067.3,3067.2,0.596204]
[1763544144343,0.0012,3067.3,3067.2,1.057104]
[1763544144507,0.0012,3067.3,3067.2,0.1907]
[1763544144705,0.0012,3067.3,3067.0,0.1907]
[1763544144938,0.0012,3067.3,3066.3,0.183]
[1763544144939,0.0012,3067.3,3066.3,0.6439]
[1763544146542,0.0012,3067.3,3065.1,0.297]
[1763544146543,0.482,3067.2,3066.0,0.1907]
[1763544146740,0.04075511,3067.1,3066.0,0.1907]
[1763544146916,0.52275511,3067.1,3066.0,0.1907]
[1763544148012,0.482,3067.1,3066.0,0.1907]
[1763544148208,0.482,3067.1,3066.1,0.405504]
[1763544149338,0.0012,3067.3,3066.1,0.405504]
[1763544149339,0.0012,3067.3,3066.4,6.45999558]
[1763544149539,0.0012,3067.3,3067.2,0.596204]
[1763544150024,0.002,3067.6,3067.2,0.596204]
[1763544150025,0.002,3067.6,3067.2,1.057104]
[1763544150225,0.1895,3069.1,3067.3,0.866404]
[1763544150429,0.51155692,3069.3,3067.3,0.866404]
[1763544150624,0.482,3069.5,3067.5,0.405504]
[1763544151053,0.482,3069.5,3067.7,0.405504]
[1763544151555,0.04072457,3069.4,3067.9,0.405504]
[1763544151931,0.482,3069.3,3067.9,0.405504]
[1763544152325,0.482,3069.3,3068.1,0.405504]
[1763544152725,0.482,3069.3,3068.2,0.593204]
[1763544153245,0.04072722,3069.2,3068.0,0.405504]
[1763544153753,0.51149006,3069.0,3068.0,0.405504]
[1763544154270,0.1895,3068.9,3068.0,0.405504]
[1763544154422,0.51149006,3069.0,3068.0,0.866404]
[1763544155252,0.1895,3068.9,3068.0,0.405504]
[1763544155570,0.1895,3068.9,3067.9,0.1877]
[1763544155762,0.6715,3068.9,3067.9,0.1877]
[1763544157863,0.04073253,3068.8,3067.9,0.1877]
[1763544158119,0.002,3069.5,3068.1,0.90699264]
[1763544158255,0.002,3069.5,3069.4,0.1868]
[1763544158762,0.002,3069.5,3069.4,0.6807]
[1763544160075,0.002,3069.5,3069.4,0.1868]
[1763544160255,0.002,3069.5,3069.1,0.405504]
[1763544160455,0.002,3069.5,3069.0,0.6807]
[1763544160659,0.002,3069.5,3068.5,0.4939]
[1763544160660,0.4906,3069.5,3068.5,0.4939]
[1763544161758,0.51135993,3069.3,3068.5,0.4939]
[1763544162104,0.51135993,3069.3,3067.9,0.1877]
[1763544162105,0.04072722,3069.2,3067.9,0.1877]
[1763544162600,0.4886,3069.1,3067.9,0.1877]
[1763544162788,0.04072987,3069.0,3067.9,0.1877]
[1763544163159,0.6821,3068.9,3067.9,0.1877]
[1763544163471,0.6821,3068.9,3067.2,0.6846]
[1763544163675,0.4886,3068.8,3067.2,0.6846]
[1763544164255,0.4886,3068.8,3067.3,0.405504]
[1763544164461,0.4886,3068.8,3067.3,0.899404]
[1763544164993,0.4886,3068.8,3067.5,0.405504]
[1763544167209,0.4886,3068.8,3067.2,0.1907]
[1763544168694,0.4886,3068.8,3067.3,0.4939]
[1763544168896,0.4886,3068.8,3067.2,0.1907]
[1763544169096,0.4878,3068.8,3067.2,0.1907]
[1763544170868,0.4878,3068.8,3067.5,0.001]
[1763544171674,0.1935,3068.9,3067.6,0.405504]
[1763544171877,0.1935,3068.9,3067.8,0.405504]
[1763544172183,0.1935,3068.9,3067.6,0.405504]
[1763544172578,0.1935,3068.9,3067.8,0.405504]
[1763544172919,0.002,3069.0,3068.8,0.1886]
[1763544173783,0.002,3069.0,3068.4,0.52649027]
[1763544173986,0.002,3069.0,3068.3,0.405504]
[1763544174922,0.002,3069.0,3068.3,0.899404]
[1763544175249,0.1935,3068.9,3068.2,0.1886]
[1763544175910,0.1935,3068.9,3067.8,0.4939]
[1763544176085,0.2342312,3068.9,3067.8,0.4939]
[1763544176289,0.2342312,3068.9,3067.9,0.405504]
[1763544176290,0.1935,3068.9,3067.9,0.405504]
[1763544176784,0.1935,3068.9,3067.9,0.4939]
[1763544177200,0.002,3069.0,3068.0,0.43809852]
[1763544177725,0.002,3069.0,3068.2,0.405504]
[1763544178792,0.1935,3068.9,3068.2,0.405504]
[1763544179524,0.002,3069.0,3068.2,0.405504]
[1763544179752,0.002,3069.0,3068.3,0.4939]
[1763544179892,0.002,3069.0,3068.4,0.43809427]
[1763544180091,0.002,3069.0,3068.9,0.4629]
[1763544180839,0.002,3069.0,3068.5,0.4939]
[1763544181397,0.002,3069.0,3068.9,0.4629]
[1763544181627,0.002,3069.0,3068.9,0.868404]
[1763544181922,0.002,3069.0,3068.9,1.362304]
[1763544182732,0.002,3069.0,3068.5,0.405504]
[1763544183108,0.002,3069.0,3068.7,0.405504]
[1763544183543,0.002,3069.0,3068.6,0.4939]
[1763544183838,0.002,3069.0,3068.2,0.899404]
[1763544185307,0.002,3069.0,3068.2,0.405504]
[1763544185616,0.002,3069.0,3068.9,0.4629]
[1763544186042,0.002,3069.0,3068.9,0.9568]
[1763544186913,0.002,3069.0,3068.9,0.4629]
[1763544187535,0.002,3069.0,3068.6,0.405504]
[1763544187947,0.002,3069.0,3068.3,0.90699264]
[1763544188246,0.002,3069.0,3068.4,0.405504]
[1763544189353,0.1955,3068.9,3068.3,0.90699264]
[1763544189513,0.1955,3068.9,3068.2,3.87]
[1763544189848,0.1955,3068.9,3068.1,0.1886]
[1763544190137,0.1955,3068.9,3068.2,0.405504]
[1763544190441,0.6893,3068.9,3068.1,0.1886]
[1763544191219,0.002,3069.0,3068.1,0.1886]
[1763544191442,0.002,3069.0,3068.2,0.50209239]
[1763544191620,0.002,3069.0,3068.3,0.43809533]
[1763544191975,0.1955,3068.9,3068.3,0.3268]
[1763544192828,0.1955,3068.9,3068.1,0.1886]
[1763544192829,0.6893,3068.9,3068.1,0.1886]
[1763544193242,0.002,3069.0,3068.1,0.6581]
[1763544193739,0.1955,3068.9,3068.1,0.1886]
[1763544194124,0.6885,3068.9,3068.1,0.1886]
[1763544194454,0.002,3069.0,3068.1,0.6581]
[1763544194656,0.002,3069.0,3068.2,0.4695]
[1763544194951,0.1955,3068.9,3068.1,0.1886]
[1763544195456,0.6893,3068.9,3067.9,0.3268]
[1763544195622,0.45,3068.2,3067.6,4.1968]
[1763544195957,0.6893,3068.9,3067.6,0.3268]
[1763544195958,0.4938,3068.5,3067.6,0.3268]
[1763544196152,0.1955,3068.9,3067.7,0.50209771]
[1763544196358,0.1955,3068.9,3067.8,0.3268]
[1763544196524,0.1955,3068.9,3068.0,0.405504]
[1763544196725,0.002,3069.0,3068.1,0.68389346]
[1763544197657,0.1955,3068.9,3068.1,0.1818]
[1763544198028,0.6893,3068.9,3068.1,0.1818]
[1763544198225,0.45,3068.2,3067.6,4.1968]
[1763544198931,0.45,3068.2,3067.7,0.90699264]
[1763544199129,0.45,3068.2,3067.6,0.3268]
[1763544200932,0.45,3068.2,3067.5,0.001]
[1763544201829,0.9438,3068.2,3067.5,0.001]
[1763544203548,0.4938,3068.1,3067.5,0.001]
[1763544203745,0.275,3067.6,3067.5,0.001]
[1763544204272,0.1955,3068.9,3067.5,0.9228]
[1763544204456,0.1955,3068.9,3067.5,0.4533]
[1763544204659,0.6893,3068.9,3067.6,0.7963]
[1763544204963,0.7300312,3068.9,3067.5,0.4533]
[1763544205267,0.4938,3068.8,3067.5,0.001]
[1763544205435,0.04073386,3068.7,3067.5,0.001]
[1763544205632,0.4938,3068.6,3067.5,0.001]
[1763544205831,0.04073651,3068.5,3067.5,0.001]
[1763544206269,0.4938,3068.4,3067.5,0.001]
[1763544206631,0.4938,3068.4,3067.5,0.4705]
[1763544206836,0.6913,3068.9,3067.6,0.76490277]
[1763544207059,0.6913,3068.9,3067.8,0.405504]
[1763544207264,0.1975,3068.9,3068.0,0.405504]
[1763544207469,0.4794,3068.8,3068.0,0.405504]
[1763544207657,0.04073386,3068.7,3067.8,0.405504]
[1763544207981,0.1975,3068.9,3067.9,0.476]
[1763544208160,0.002,3068.9,3068.0,0.43809852]
[1763544208356,0.002,3068.9,3068.1,0.6607]
[1763544209246,0.1837,3068.9,3068.1,0.6607]
[1763544209573,0.04073253,3068.8,3068.1,0.1847]
[1763544209749,0.6631,3068.9,3067.8,0.405504]
[1763544209959,0.4794,3068.8,3067.8,0.405504]
[1763544210157,0.4794,3068.8,3067.6,0.732304]
[1763544210543,0.04073386,3068.7,3067.6,0.732304]
[1763544210748,0.4794,3068.8,3067.6,0.732304]
[1763544211277,0.4794,3068.8,3067.5,0.001]
[1763544211278,0.6631,3068.9,3067.8,0.405504]
[1763544211668,1.17455531,3068.9,3067.9,0.405504]
[1763544211871,0.6631,3068.9,3067.9,0.405504]
[1763544212068,0.4992,3068.0,3067.7,0.3268]
[1763544212257,0.4794,3068.4,3067.5,0.001]
[1763544212445,0.1837,3068.9,3067.5,0.477]
[1763544212649,0.4794,3068.8,3067.5,0.477]
[1763544212853,0.4794,3068.8,3067.5,0.001]
[1763544212854,0.04073386,3068.7,3067.5,0.001]
[1763544213053,0.4794,3068.8,3067.5,0.001]
[1763544213250,0.4794,3068.7,3067.5,0.001]
[1763544214049,0.04073518,3068.6,3067.5,0.001]
[1763544214276,0.4794,3068.7,3067.5,0.001]
[1763544214482,0.52013518,3068.6,3067.5,0.001]
[1763544215285,0.5519,3067.6,3067.5,0.001]
[1763544215686,0.51157112,3068.4,3067.5,0.001]
[1763544215887,0.1817,3068.0,3067.5,0.001]
[1763544216261,0.4794,3067.9,3067.5,0.001]
[1763544216886,0.1817,3068.0,3067.5,0.001]
[1763544217587,0.4864,3068.4,3067.5,0.001]
[1763544217789,0.4864,3068.8,3067.5,0.001]
[1763544218393,0.78448322,3068.8,3067.5,0.001]
[1763544218690,0.04073386,3068.7,3067.5,0.001]
[1763544218892,0.5597,3067.6,3067.5,0.001]
[1763544219187,0.5589,3067.6,3067.5,0.001]
[1763544219362,1.0453,3067.6,3067.5,0.001]
[1763544220662,1.55703272,3067.6,3067.5,0.001]
[1763544221195,1.0453,3067.6,3067.5,0.001]
[1763544224206,1.557042,3067.6,3067.5,0.001]
[1763544225102,0.511742,3067.6,3067.5,0.001]
[1763544225296,0.982342,3067.6,3067.5,0.001]
[1763544225500,1.468742,3067.6,3067.5,0.001]
[1763544226808,0.511742,3067.6,3067.5,0.4823]
[1763544227010,0.511742,3067.6,3067.5,0.001]
[1763544227305,1.468742,3067.6,3067.5,0.001]
[1763544231010,1.50949046,3067.6,3067.5,0.001]
[1763544231187,1.50949046,3067.6,3067.1,0.001]
[1763544231383,0.0883,3067.2,3067.1,0.001]
[1763544231784,0.5747,3067.2,3067.1,0.001]
[1763544232819,0.0883,3067.2,3067.1,0.001]
[1763544233017,0.998142,3067.6,3067.1,0.001]
[1763544233193,0.4864,3067.5,3067.1,0.001]
[1763544234494,0.4706,3067.2,3067.1,0.001]
[1763544235016,0.957,3067.2,3067.1,0.001]
[1763544235218,1.46879365,3067.2,3067.1,0.001]
[1763544236201,0.957,3067.2,3067.1,0.001]
[1763544236725,0.4706,3065.1,3063.7,0.4662]
[1763544236905,0.651,3064.8,3064.1,0.1818]
[1763544237306,0.8328,3064.8,3064.1,0.1818]
[1763544238440,1.3192,3064.8,3064.1,0.1818]
[1763544238810,0.1818,3064.8,3064.3,0.1818]
[1763544240050,0.51218201,3065.2,3064.7,0.4823]
[1763544240252,0.1804,3065.4,3064.7,0.4823]
[1763544240408,0.1818,3065.3,3064.7,0.4823]
[1763544241711,0.1804,3066.0,3064.8,0.4662]
[1763544241712,0.6668,3066.0,3064.8,0.4662]
[1763544242238,0.4823,3065.6,3064.8,0.4662]
[1763544242743,0.9687,3065.6,3064.7,0.001]
[1763544243064,0.51213825,3065.5,3064.7,0.001]
[1763544243260,0.99853825,3065.5,3064.7,0.001]
[1763544243561,0.4864,3065.5,3064.7,0.001]
[1763544243725,0.5863,3064.8,3064.7,0.001]
[1763544244048,1.0719,3064.8,3064.7,0.001]
[1763544244417,0.5855,3064.8,3064.7,0.001]
[1763544244814,0.9687,3065.6,3064.7,0.001]
[1763544245040,0.9687,3065.6,3064.7,0.4823]
[1763544245275,0.4864,3065.5,3064.7,0.001]
[1763544246369,0.1804,3064.8,3064.7,0.001]
[1763544246737,0.6925808,3064.8,3064.7,0.001]
[1763544247272,1.1631808,3064.8,3064.7,0.001]
[1763544247438,1.1374,3064.8,3064.7,0.001]
[1763544247633,1.29402741,3064.8,3064.7,0.001]
[1763544247950,0.31122861,3064.8,3064.7,0.001]
[1763544248731,0.13082861,3064.8,3064.7,0.001]
[1763544249966,0.4676,3065.5,3064.7,0.001]
[1763544250151,0.13082134,3064.9,3064.7,0.001]
[1763544250554,0.31152134,3064.9,3064.7,0.001]
[1763544251068,0.51217604,3064.9,3064.8,0.4792]
[1763544251270,0.13081193,3065.1,3064.8,0.4792]
[1763544251437,0.13081193,3065.1,3064.7,0.001]
[1763544251438,0.51215657,3065.0,3064.7,0.001]
[1763544251645,0.8613928,3066.0,3064.7,0.001]
[1763544251646,0.1804,3066.0,3065.0,0.4792]
[1763544251856,0.1307914,3065.8,3065.0,0.4792]
[1763544252040,0.1307914,3065.8,3065.1,0.1966]
[1763544252859,0.1804,3066.0,3065.1,0.666]
[1763544253039,0.648,3066.0,3065.1,0.666]
[1763544253251,1.1156,3066.0,3065.1,0.666]
[1763544254071,0.1804,3066.6,3065.9,0.4792]
[1763544255586,0.648,3067.1,3065.9,0.9486]
[1763544256083,1.38619264,3066.9,3065.3,0.4694]
[1763544256582,0.4676,3066.8,3065.3,0.4694]
[1763544257571,0.50835426,3066.8,3065.1,0.1966]
[1763544257788,1.1912599,3066.8,3065.1,0.1966]
[1763544258290,0.4676,3066.7,3065.1,0.1966]
[1763544258473,0.50835426,3066.7,3065.1,0.1966]
[1763544259494,0.51203255,3066.4,3065.1,0.1966]
[1763544259690,0.04075426,3066.3,3065.1,0.1966]
[1763544259899,2.39480259,3066.3,3065.1,0.1966]
[1763544260097,0.4676,3066.3,3065.1,0.666]
[1763544260396,0.4676,3066.2,3065.1,0.666]
[1763544261474,0.4676,3066.2,3065.2,0.4694]
[1763544261670,1.19542867,3066.4,3065.2,0.4694]
[1763544262016,0.50835426,3066.3,3065.2,0.4694]
[1763544262167,0.666,3066.1,3065.2,0.4694]
[1763544262367,0.4676,3066.3,3065.2,0.4694]
[1763544262574,0.04075426,3066.2,3065.2,0.4694]
[1763544263374,0.51203255,3066.4,3066.1,0.6721]
[1763544263573,0.51203255,3066.4,3066.2,0.4903]
[1763544263873,0.51203255,3066.4,3066.1,0.1818]
[1763544264309,0.51203255,3066.4,3066.3,0.4903]
[1763544265417,1.49193255,3066.4,3065.8,0.1818]
[1763544265720,0.04075426,3066.3,3065.8,0.1818]
[1763544265872,0.04075426,3066.3,3065.5,0.4815]
[1763544266072,0.99393255,3066.4,3065.5,0.4815]
[1763544266874,0.04075426,3066.3,3065.5,0.4815]
[1763544267074,0.52265426,3066.3,3065.4,0.1818]
[1763544267304,0.51203255,3066.4,3065.5,0.4815]
[1763544267514,0.04075426,3066.3,3065.5,0.4815]
[1763544267924,0.51203255,3066.4,3065.5,0.4815]
[1763544268124,0.99393255,3066.4,3065.4,0.1818]
[1763544268330,0.99393255,3066.4,3065.4,0.6633]
[1763544268912,0.99313255,3066.4,3065.4,0.6633]
[1763544269110,0.51123255,3066.4,3065.5,0.887004]
[1763544269301,0.68545457,3066.8,3066.3,0.4903]
[1763544269495,0.002,3066.9,3066.3,0.4903]
[1763544270125,0.002,3066.9,3066.4,0.4815]
[1763544270304,0.002,3066.9,3066.8,0.4903]
[1763544271126,0.002,3066.9,3066.4,0.4815]
[1763544272797,0.51185011,3066.8,3066.4,0.4815]
[1763544273602,0.51185011,3066.8,3066.7,0.4903]
[1763544274304,0.002,3066.9,3066.7,0.4903]
[1763544275021,0.002,3066.9,3066.8,0.9718]
[1763544275934,0.002,3066.9,3066.0,0.03261578]
[1763544275935,0.002,3066.9,3066.1,0.405504]
[1763544276448,0.002,3066.9,3066.8,0.4903]
[1763544276847,0.002,3066.9,3066.2,0.4815]
[1763544276848,0.002,3066.9,3066.3,0.405504]
[1763544277029,0.002,3066.9,3066.8,0.4903]
[1763544279470,0.002,3066.9,3066.4,0.4815]
[1763544279761,0.002,3066.9,3066.8,0.4659]
[1763544280154,0.002,3066.9,3066.8,0.9501]
[1763544280552,0.002,3066.9,3066.8,0.4659]
[1763544280852,0.002,3066.9,3066.3,0.405504]
[1763544281972,0.002,3066.9,3065.8,0.405504]
[1763544282135,0.002,3066.9,3066.3,0.405504]
[1763544282633,0.002,3066.9,3065.8,0.405504]
[1763544282836,0.002,3066.9,3066.3,0.4842]
[1763544287372,0.002,3066.9,3066.8,0.4659]
[1763544287742,0.002,3066.9,3066.8,0.9501]
[1763544287942,0.002,3066.9,3066.8,1.355604]
[1763544289780,0.002,3066.9,3066.8,0.871404]
[1763544290670,0.002,3066.9,3066.5,0.405504]
[1763544291273,0.002,3066.9,3066.8,0.4659]
[1763544291693,0.002,3066.9,3066.8,0.9501]
[1763544293982,0.0012,3066.9,3066.8,0.9501]
[1763544294478,0.4968,3066.9,3066.1,4.77699264]
[1763544294774,0.9486,3066.9,3066.1,5.7388919]
[1763544294980,0.4968,3066.9,3066.1,5.2546919]
[1763544295274,0.4968,3066.9,3066.4,0.001]
[1763544295647,0.4968,3066.9,3066.4,0.4852]
[1763544295983,0.4968,3066.9,3066.4,0.001]
[1763544297368,0.9486,3066.9,3066.4,0.001]
[1763544299103,0.4968,3066.9,3066.4,0.001]
[1763544299280,0.1223,3066.5,3066.4,0.001]
[1763544299587,0.5741,3066.5,3066.4,0.001]
[1763544301088,0.0012,3066.9,3066.4,0.001]
[1763544301303,0.453,3066.9,3066.4,0.001]
[1763544301656,0.0012,3066.9,3066.4,0.001]
[1763544301857,0.0012,3066.9,3066.8,0.4659]
[1763544302665,0.0012,3066.9,3066.8,0.9501]
[1763544303386,0.0012,3066.9,3066.8,1.355604]
[1763544303594,0.0012,3066.9,3066.8,1.682404]
[1763544303803,0.0012,3066.9,3066.8,1.8506444]
[1763544303987,0.002,3067.3,3067.2,0.732304]
[1763544304180,0.002,3067.3,3067.2,1.198204]
[1763544304488,0.002,3067.3,3067.2,1.682404]
[1763544306991,0.002,3067.3,3067.2,1.355604]
[1763544307519,0.002,3067.3,3067.1,0.1899]
[1763544307718,0.002,3067.3,3066.9,0.1952]
[1763544308106,0.002,3067.3,3066.5,0.4756]
[1763544308417,0.002,3067.3,3066.6,0.1952]
[1763544309022,0.002,3067.3,3066.4,0.001]
[1763544309418,0.002,3067.3,3066.5,0.405504]
[1763544309891,0.4597,3067.3,3066.4,0.001]
[1763544310095,0.04075378,3067.2,3066.4,0.406504]
[1763544311001,0.04075378,3067.2,3066.4,0.882104]
[1763544312435,0.04075378,3067.2,3066.4,0.406504]
[1763544312653,0.04075378,3067.2,3066.6,0.405504]
[1763544312868,0.002,3067.3,3066.6,0.405504]
[1763544313019,0.002,3067.3,3066.4,0.001]
[1763544313020,0.494,3066.7,3066.4,0.001]
[1763544313225,0.4577,3067.1,3066.5,0.001]
[1763544313546,0.4577,3067.0,3066.5,0.001]
[1763544313710,0.494,3066.6,3066.5,0.001]
[1763544313911,0.4577,3067.0,3066.5,0.001]
[1763544314636,0.494,3066.6,3066.5,0.001]
[1763544315343,0.002,3067.3,3066.6,0.405504]
[1763544315648,0.002,3067.3,3066.9,0.4786]
[1763544316148,0.002,3067.3,3067.2,0.4786]
[1763544316847,0.002,3067.3,3067.2,0.9542]
[1763544317148,0.002,3067.3,3067.2,1.359704]
[1763544317717,0.002,3067.3,3067.2,0.884104]
[1763544318051,0.002,3067.3,3066.9,0.4756]
[1763544318052,0.002,3067.3,3067.0,0.405504]
[1763544318748,0.002,3067.3,3067.2,0.4786]
[1763544318948,0.0012,3067.3,3067.2,0.4786]
[1763544320232,0.0012,3067.3,3066.6,0.3268]
[1763544321067,0.0012,3067.3,3066.6,0.8024]
[1763544321563,0.0012,3067.3,3066.7,0.405504]
[1763544322169,0.0012,3067.3,3067.2,0.4786]
[1763544323736,0.4952,3067.3,3066.8,5.18249664]
[1763544323939,0.9706,3067.3,3066.8,5.7334263]
[1763544324354,0.0012,3067.3,3067.2,0.4866]
[1763544325564,0.0012,3067.3,3066.8,5.3279223]
[1763544325565,0.4672,3067.3,3067.0,0.405504]
[1763544325866,0.9426,3067.3,3067.0,0.97884663]
[1763544326975,0.4672,3067.3,3067.0,0.57334263]
[1763544327175,0.9426,3067.3,3067.0,0.57334263]
[1763544327381,0.9426,3067.3,3066.8,0.405504]
[1763544327983,0.9426,3067.3,3066.7,0.405504]
[1763544328712,0.4672,3067.3,3066.7,4.275504]
[1763544329123,0.0012,3067.3,3066.7,4.740704]
[1763544329276,0.0012,3067.3,3066.8,0.4740704]
[1763544329818,0.0012,3067.3,3066.8,0.9392704]
[1763544330184,0.4766,3067.3,3066.8,0.4740704]
[1763544330819,0.4766,3067.3,3066.7,0.405504]
[1763544331118,0.4766,3067.3,3066.6,0.405504]
[1763544332416,0.0012,3067.3,3066.6,0.405504]
[1763544332615,0.0012,3067.3,3066.6,0.870704]
[1763544333113,0.0012,3067.3,3066.8,0.405504]
[1763544333314,0.0012,3067.3,3066.8,0.870704]
[1763544334315,0.0012,3067.3,3066.9,0.4652]
[1763544334888,0.0012,3067.3,3066.9,0.98941926]
[1763544335087,0.0012,3067.3,3066.9,0.52421926]
[1763544335994,0.4754,3067.2,3066.9,0.52421926]
[1763544337116,0.466,3067.0,3066.8,0.90699264]
[1763544337699,0.0012,3067.3,3066.9,0.91478]
[1763544338401,0.0012,3067.3,3067.2,0.4553]
[1763544338949,0.0012,3067.3,3067.2,2.24689664]
[1763544339101,0.0012,3067.3,3067.2,2.8585863]
[1763544339519,0.0012,3067.3,3067.2,2.89118932]
[1763544339912,0.0012,3067.3,3067.2,1.98419668]
[1763544340114,0.0012,3067.3,3067.2,1.339904]
[1763544341933,0.0012,3067.3,3067.2,0.860804]
[1763544342103,0.0012,3067.3,3067.2,0.405504]
[1763544342303,0.0012,3067.3,3067.2,0.860804]
[1763544343666,0.0012,3067.3,3067.2,1.339904]
[1763544343872,0.0004,3067.3,3067.2,1.339904]
[1763544347305,0.0004,3067.3,3067.2,1.666704]
[1763544347612,0.0004,3067.3,3067.2,1.8333744]
[1763544347759,0.0004,3067.3,3067.2,1.3542744]
[1763544347961,0.0004,3067.3,3067.2,0.5721744]
[1763544348174,0.0004,3067.3,3067.2,0.405504]
[1763544349276,0.4745,3067.3,3066.7,4.77699264]
[1763544349476,0.0004,3067.3,3067.2,0.860804]
[1763544349987,0.0004,3067.3,3067.2,1.339904]
[1763544350211,0.0004,3067.3,3067.2,1.5065744]
[1763544351001,0.0004,3067.3,3067.2,1.0274744]
[1763544351567,0.0004,3067.3,3067.2,1.5065744]
[1763544352570,0.0004,3067.3,3067.2,0.5721744]
[1763544352770,0.0004,3067.3,3067.2,0.405504]
[1763544352971,0.0004,3067.3,3067.2,1.339904]
[1763544354005,0.0004,3067.3,3067.2,1.666704]
[1763544359533,0.0004,3067.3,3067.2,1.187604]
[1763544359830,0.0004,3067.3,3067.2,0.7821]
[1763544359987,0.0004,3067.3,3067.2,1.29380302]
[1763544360183,0.0004,3067.3,3067.2,1.2612]
[1763544360383,0.0004,3067.3,3067.2,0.732304]
[1763544360814,0.0004,3067.3,3067.2,0.7821]
[1763544360979,0.4745,3067.3,3066.9,0.001]
[1763544361183,0.9462,3067.3,3066.9,0.001]
[1763544361611,0.4745,3067.3,3066.9,0.001]
[1763544363183,0.0004,3067.3,3067.2,0.860804]
[1763544363387,0.0004,3067.3,3066.5,0.001]
[1763544363388,0.4741,3066.0,3065.6,0.3268]
[1763544363587,1.37117092,3067.3,3064.8,0.001]
[1763544363588,0.1922,3065.8,3064.8,0.001]
[1763544363821,0.5346,3064.9,3064.8,0.001]